bitfinex/quotes_BTCUSD_20241202
["timestamp","ask_amount","ask_price","bid_price","bid_amount"]
[1733118680262,0.22350571,96553.0,96552.0,0.05453578]
[1733118680466,0.22750571,96553.0,96552.0,0.05453578]
[1733118681759,0.22850571,96553.0,96552.0,0.05453578]
[1733118687684,0.22800857,96553.0,96552.0,0.05453578]
[1733118688585,0.22800857,96553.0,96552.0,0.0468]
[1733118688794,0.22800857,96553.0,96552.0,0.0545469]
[1733118690923,0.22973997,96553.0,96552.0,0.0545469]
[1733118693366,0.21647507,96553.0,96552.0,0.0775469]
[1733118698795,0.21647507,96553.0,96552.0,0.0775644]
[1733118699913,0.00933507,96553.0,96552.0,0.57046729]
[1733118700127,0.0067314,96553.0,96552.0,0.57046729]
[1733118700339,0.0067314,96553.0,96552.0,0.1589644]
[1733118700787,0.00532049,96553.0,96552.0,0.57065399]
[1733118701239,0.00832049,96553.0,96552.0,0.57065399]
[1733118701451,0.00732049,96553.0,96552.0,0.1589644]
[1733118701887,0.00732049,96553.0,96552.0,0.16079737]
[1733118702098,0.00432049,96553.0,96552.0,0.16079737]
[1733118703594,0.00432049,96553.0,96552.0,0.16279737]
[1733118704261,0.00432049,96553.0,96552.0,0.16366307]
[1733118704474,0.00432049,96553.0,96552.0,0.1618301]
[1733118705120,0.00432049,96553.0,96552.0,0.1598301]
[1733118705328,0.00432049,96553.0,96552.0,0.1618301]
[1733118705795,0.00432049,96553.0,96552.0,0.1598301]
[1733118706420,0.00432049,96553.0,96552.0,0.1618301]
[1733118706798,0.00432049,96553.0,96552.0,0.1608301]
[1733118707273,0.00432049,96553.0,96552.0,0.1598301]
[1733118707419,0.00432049,96553.0,96552.0,0.1608301]
[1733118709039,0.00432049,96553.0,96552.0,0.1628301]
[1733118710464,0.00432049,96553.0,96552.0,0.1608301]
[1733118710673,0.00432049,96553.0,96552.0,0.1378301]
[1733118710874,0.00432049,96553.0,96552.0,0.0930301]
[1733118712164,0.00432049,96553.0,96552.0,0.0910301]
[1733118712537,0.00432049,96553.0,96552.0,0.1617301]
[1733118712745,0.00432049,96553.0,96552.0,0.16356309]
[1733118712947,0.00432049,96553.0,96552.0,0.16156188]
[1733118713355,0.00432049,96553.0,96552.0,0.16256188]
[1733118713602,0.00432049,96553.0,96552.0,0.16156188]
[1733118713980,0.00832049,96553.0,96552.0,0.16056188]
[1733118714145,0.00432049,96553.0,96552.0,0.16056188]
[1733118714550,0.00432049,96553.0,96552.0,0.16156188]
[1733118714831,0.00432049,96553.0,96552.0,0.16056188]
[1733118715027,0.00432049,96553.0,96552.0,0.16156188]
[1733118715237,0.00432049,96553.0,96552.0,0.16356188]
[1733118715460,0.00432049,96553.0,96552.0,0.16256188]
[1733118715879,0.00432049,96553.0,96552.0,0.16056188]
[1733118716315,0.00432049,96553.0,96552.0,0.16356188]
[1733118716782,0.00432049,96553.0,96552.0,0.16156188]
[1733118716995,0.00432049,96553.0,96552.0,0.16056188]
[1733118717200,0.00432049,96553.0,96552.0,0.16356188]
[1733118717432,0.00432049,96553.0,96552.0,0.16456188]
[1733118722372,0.00432049,96553.0,96552.0,0.15679869]
[1733118722588,0.00432049,96553.0,96552.0,0.1645643]
[1733118724685,0.00408924,96553.0,96552.0,0.1645643]
[1733118724893,0.00408924,96553.0,96552.0,0.01263131]
[1733118725380,0.01783648,96553.0,96552.0,0.01263131]
[1733118725603,0.01783648,96553.0,96552.0,0.00963131]
[1733118726020,0.01783648,96553.0,96552.0,0.01063131]
[1733118726438,0.01783648,96553.0,96552.0,0.03263131]
[1733118726927,0.01783648,96553.0,96552.0,0.03163131]
[1733118727363,0.01883648,96553.0,96552.0,0.03163131]
[1733118727587,0.01783648,96553.0,96552.0,0.03163131]
[1733118727829,0.01783648,96553.0,96552.0,0.03163229]
[1733118728247,0.02083648,96553.0,96552.0,0.03163229]
[1733118729125,0.02083648,96553.0,96552.0,0.03163197]
[1733118729546,0.02083648,96553.0,96552.0,0.0316319]
[1733118730019,0.01783648,96553.0,96552.0,0.0316319]
[1733118730498,0.02083648,96553.0,96552.0,0.0316319]
[1733118731126,0.01783648,96553.0,96552.0,0.0316319]
[1733118731335,0.01983648,96553.0,96552.0,0.0316319]
[1733118731805,0.01783648,96553.0,96552.0,0.0316319]
[1733118732031,0.01883648,96553.0,96552.0,0.0316319]
[1733118732458,0.01883648,96553.0,96552.0,0.03086872]
[1733118732664,0.01883648,96553.0,96552.0,0.00786872]
[1733118732868,0.01883648,96553.0,96552.0,0.44357029]
[1733118733075,0.01883648,96553.0,96552.0,0.03086872]
[1733118733279,0.01883648,96553.0,96552.0,0.03186872]
[1733118733920,0.01883648,96553.0,96552.0,0.00886872]
[1733118739214,0.01883648,96553.0,96552.0,0.00886561]
[1733118745927,0.01883648,96553.0,96552.0,0.00886544]
[1733118747685,0.04874058,96553.0,96552.0,0.00886544]
[1733118749076,0.04874058,96553.0,96552.0,0.00110252]
[1733118749308,0.04874058,96553.0,96552.0,0.00886753]
[1733118749571,0.0623437,96553.0,96552.0,0.00886753]
[1733118749706,0.06291605,96553.0,96552.0,0.00886753]
[1733118749918,0.29396126,96553.0,96552.0,0.00786753]
[1733118750119,0.29396126,96553.0,96552.0,0.00010252]
[1733118750542,0.29396126,96553.0,96552.0,0.00110252]
[1733118750740,0.27935814,96553.0,96552.0,0.00110252]
[1733118751082,0.27935814,96553.0,96552.0,0.00010252]
[1733118751294,0.28735814,96553.0,96552.0,0.00010252]
[1733118751521,0.27935814,96553.0,96552.0,0.00010252]
[1733118752429,0.29135814,96553.0,96552.0,0.00010252]
[1733118753033,0.3911896,96553.0,96552.0,0.00010252]
[1733118753254,0.3941896,96553.0,96552.0,0.00010252]
[1733118754308,0.29135814,96553.0,96552.0,0.00010252]
[1733118755175,0.44135814,96553.0,96552.0,0.00010252]
[1733118756697,0.18851293,96553.0,96552.0,0.00010252]
[1733118756902,0.02983648,96553.0,96552.0,0.00010252]
[1733118757927,0.02983648,96553.0,96552.0,0.08010252]
[1733118758342,0.02983648,96553.0,96552.0,0.00010252]
[1733118758552,0.09495963,96553.0,96552.0,0.00010252]
[1733118758749,0.02983648,96553.0,96552.0,0.00010252]
[1733118761697,0.13268169,96553.0,96552.0,0.00010252]
[1733118761911,0.17678944,96553.0,96552.0,0.00010252]
[1733118767684,0.17678944,96553.0,96551.0,0.0008654]
[1733118767915,0.35409496,96552.0,96551.0,0.0008654]
[1733118768138,0.37175097,96552.0,96551.0,0.0008654]
[1733118768813,0.57175097,96552.0,96551.0,0.0008654]
[1733118769361,0.55409496,96552.0,96551.0,0.0008654]
[1733118769578,0.55422925,96552.0,96551.0,0.0008654]
[1733118770440,0.55722925,96552.0,96551.0,0.0008654]
[1733118770652,0.35722925,96552.0,96551.0,0.0008654]
[1733118771041,0.36522925,96552.0,96551.0,0.0008654]
[1733118774309,0.61522925,96552.0,96551.0,0.0008654]
[1733118774529,0.51522925,96552.0,96551.0,0.0008654]
[1733118775026,0.61522925,96552.0,96551.0,0.0008654]
[1733118775247,0.51522925,96552.0,96551.0,0.0008654]
[1733118777776,0.51522925,96552.0,96550.0,9.6e-07]
[1733118777777,0.2491,96551.0,96550.0,9.6e-07]
[1733118777985,0.40215707,96551.0,96550.0,9.6e-07]
[1733118778193,0.44569247,96551.0,96550.0,9.6e-07]
[1733118778633,0.34569247,96551.0,96550.0,9.6e-07]
[1733118778868,0.64569247,96551.0,96550.0,9.6e-07]
[1733118779319,0.65469247,96551.0,96550.0,9.6e-07]
[1733118779565,0.67509089,96551.0,96550.0,0.00100096]
[1733118779981,0.67566324,96551.0,96550.0,0.00100096]
[1733118780216,0.65526482,96551.0,96550.0,9.6e-07]
[1733118780440,0.56026482,96551.0,96550.0,0.00100096]
[1733118780672,0.50216482,96551.0,96550.0,0.00100096]
[1733118780906,0.31116482,96551.0,96550.0,0.00100096]
[1733118785076,0.31289482,96551.0,96550.0,0.00100096]
[1733118785288,0.207161,96543.0,96542.0,0.0008652]
[1733118785502,0.31000621,96543.0,96542.0,0.0008652]
[1733118785743,0.31021807,96543.0,96542.0,0.0008652]
[1733118786393,0.31321807,96543.0,96542.0,0.0008652]
[1733118786861,0.51321807,96543.0,96542.0,0.0008652]
[1733118787335,0.76321807,96543.0,96542.0,0.0008652]
[1733118787549,0.77179042,96543.0,96542.0,0.0008652]
[1733118787765,0.207174,96537.0,96518.0,0.0495]
[1733118787992,0.10284521,96536.0,96518.0,0.0495]
[1733118788207,0.207178,96535.0,96518.0,0.0495]
[1733118788436,0.31002321,96535.0,96518.0,0.0495]
[1733118788638,0.31023507,96535.0,96518.0,0.0495]
[1733118789493,0.31118112,96535.0,96518.0,0.0495]
[1733118789706,0.31718112,96535.0,96518.0,0.0495]
[1733118790149,0.31718112,96535.0,96512.0,0.0008651]
[1733118790150,0.213178,96535.0,96531.0,0.0755]
[1733118790565,0.363178,96535.0,96531.0,0.0755]
[1733118790769,0.372178,96535.0,96531.0,0.0755]
[1733118790972,0.37495848,96535.0,96531.0,0.0755]
[1733118792979,0.45400402,96535.0,96518.0,0.41398974]
[1733118793184,0.41997934,96535.0,96524.0,0.1269]
[1733118793393,0.52227141,96535.0,96524.0,0.1269]
[1733118793603,0.52227141,96535.0,96518.0,0.1283]
[1733118794510,0.52241519,96535.0,96518.0,0.1283]
[1733118794933,0.207223,96514.0,96513.0,0.41215608]
[1733118795168,0.207223,96514.0,96512.0,0.00095138]
[1733118796794,0.211223,96514.0,96512.0,0.00095138]
[1733118797835,0.212223,96514.0,96512.0,0.00095138]
[1733118798356,0.211223,96514.0,96512.0,0.00095138]
[1733118798574,0.212223,96514.0,96512.0,0.00095138]
[1733118799272,0.211223,96514.0,96512.0,0.00095138]
[1733118799518,0.212223,96514.0,96512.0,0.00095138]
[1733118799743,0.208223,96514.0,96512.0,0.00095138]
[1733118799967,0.213223,96514.0,96512.0,0.00095138]
[1733118801441,0.22735374,96514.0,96512.0,0.00095138]
[1733118804296,0.006,96514.0,96513.0,0.1226]
[1733118804727,0.006,96514.0,96513.0,0.12443378]
[1733118805165,0.001,96514.0,96513.0,0.12443378]
[1733118805409,0.15,96532.0,96516.0,0.0754]
[1733118805618,0.15,96530.0,96521.0,0.0496]
[1733118805835,0.207191,96529.0,96522.0,0.0825]
[1733118806056,0.15,96530.0,96523.0,0.047]
[1733118806261,0.35719,96530.0,96525.0,0.047]
[1733118806467,0.20995948,96535.0,96526.0,0.0825]
[1733118806694,0.20718,96534.0,96527.0,0.047]
[1733118806904,0.41436,96534.0,96527.0,0.047]
[1733118807089,0.005,96529.0,96527.0,0.047]
[1733118807344,0.41436,96534.0,96527.0,0.047]
[1733118807586,0.207193,96528.0,96527.0,0.047]
[1733118809364,0.208193,96528.0,96527.0,0.047]
[1733118809800,0.214193,96528.0,96527.0,0.047]
[1733118810425,0.214193,96528.0,96522.0,0.0008652]
[1733118810426,0.2072,96526.0,96522.0,0.0008652]
[1733118810663,0.207202,96524.0,96522.0,0.0008652]
[1733118813265,0.15,96523.0,96522.0,0.0008652]
[1733118814591,0.154,96523.0,96522.0,0.0008652]
[1733118814996,0.17468563,96523.0,96522.0,0.0008652]
[1733118815647,0.21098263,96523.0,96522.0,0.0008652]
[1733118815844,0.2122722,96523.0,96522.0,0.0008652]
[1733118816054,0.35652041,96523.0,96522.0,0.0008652]
[1733118817121,0.35252041,96523.0,96522.0,0.0008652]
[1733118817670,0.36152041,96523.0,96522.0,0.0008652]
[1733118817868,0.36752041,96523.0,96522.0,0.0008652]
[1733118818074,0.35852041,96523.0,96522.0,0.0008652]
[1733118818282,0.47035187,96523.0,96522.0,0.0008652]
[1733118818484,0.46435187,96523.0,96522.0,0.0008652]
[1733118818714,0.46135187,96523.0,96522.0,0.0008652]
[1733118818919,0.47035187,96523.0,96522.0,0.0008652]
[1733118819576,0.47080303,96523.0,96522.0,0.0008652]
[1733118819777,0.36797157,96523.0,96522.0,0.0008652]
[1733118821249,0.35897157,96523.0,96522.0,0.0008652]
[1733118821473,0.35297157,96523.0,96522.0,0.0008652]
[1733118821686,0.55297157,96523.0,96522.0,0.0008652]
[1733118821905,0.56797157,96523.0,96522.0,0.0008652]
[1733118822111,0.67080303,96523.0,96522.0,0.0008652]
[1733118822553,0.66480303,96523.0,96522.0,0.0008652]
[1733118823614,0.65580303,96523.0,96522.0,0.0008652]
[1733118823816,0.80120303,96523.0,96522.0,2e-07]
[1733118824019,0.80120303,96523.0,96499.0,0.0008652]
[1733118824020,7.9998478,96500.0,96499.0,0.0008652]
[1733118824226,8.1498478,96500.0,96499.0,0.0008652]
[1733118825333,8.1528478,96500.0,96499.0,0.0008652]
[1733118826878,8.1498478,96500.0,96499.0,0.0008652]
[1733118827100,8.1528478,96500.0,96499.0,0.0008652]
[1733118827322,8.25567926,96500.0,96499.0,0.0008652]
[1733118827559,8.25267926,96500.0,96499.0,0.0008652]
[1733118827785,8.38348658,96500.0,96499.0,0.0008652]
[1733118828003,8.3797867,96500.0,96499.0,0.0008652]
[1733118829135,8.27695524,96500.0,96499.0,0.0008652]
[1733118829804,8.17411003,96500.0,96499.0,0.0008652]
[1733118830193,8.18760064,96500.0,96499.0,0.0008652]
[1733118830989,8.18760064,96500.0,96499.0,0.1240652]
[1733118834354,8.18933164,96500.0,96499.0,0.1240652]
[1733118837231,8.0045788,96500.0,96499.0,0.1240652]
[1733118849784,8.0045788,96500.0,96499.0,0.53602352]
[1733118850428,8.0045788,96500.0,96499.0,0.53604213]
[1733118851218,8.0045788,96500.0,96499.0,0.1240652]
[1733118854599,8.0045788,96500.0,96499.0,0.8240652]
[1733118855721,8.0015788,96500.0,96499.0,0.8240652]
[1733118855947,8.0045788,96500.0,96499.0,0.8240652]
[1733118856179,8.0045788,96500.0,96499.0,0.1240652]
[1733118856422,8.0015788,96500.0,96499.0,0.1240652]
[1733118857939,8.0025788,96500.0,96499.0,0.1240652]
[1733118859773,8.07234096,96500.0,96499.0,0.0008652]
[1733118859973,8.0015788,96500.0,96499.0,0.0008652]
[1733118863140,8.0045788,96500.0,96499.0,0.0008652]
[1733118864472,8.0045788,96500.0,96499.0,0.0132884]
[1733118867574,8.0045788,96500.0,96499.0,0.0008652]
[1733118867776,8.0045788,96500.0,96499.0,0.01328938]
[1733118867998,8.0045788,96500.0,96499.0,0.01328943]
[1733118873742,8.0045788,96500.0,96499.0,0.0008652]
[1733118879795,8.0045788,96500.0,96499.0,0.01328682]
[1733118880981,8.00759106,96500.0,96499.0,0.01328682]
[1733118881426,8.00459106,96500.0,96499.0,0.01328682]
[1733118881807,8.00659106,96500.0,96499.0,0.01328682]
[1733118882226,8.00459106,96500.0,96499.0,0.01328682]
[1733118882423,8.00759106,96500.0,96499.0,0.01328682]
[1733118888197,8.00759106,96500.0,96499.0,0.01329532]
[1733118894338,8.02861061,96500.0,96499.0,0.14059532]
[1733118894585,8.00459106,96500.0,96499.0,0.14059532]
[1733118895059,8.00459106,96500.0,96499.0,0.14059861]
[1733118895475,8.00759106,96500.0,96499.0,0.14059861]
[1733118895696,8.00459106,96500.0,96499.0,0.14059861]
[1733118896118,8.00759106,96500.0,96499.0,0.14059861]
[1733118899246,8.00629198,96500.0,96499.0,0.14059861]
[1733118899460,8.0060088,96500.0,96499.0,0.14059861]
[1733118900777,8.0060088,96500.0,96499.0,0.1281652]
[1733118900972,8.0060088,96500.0,96499.0,0.1405959]
[1733118901440,8.0030088,96500.0,96499.0,0.1405959]
[1733118901691,8.0030088,96500.0,96499.0,0.1281652]
[1733118901920,8.0060088,96500.0,96499.0,0.1281652]
[1733118902143,8.0030088,96500.0,96499.0,0.1281652]
[1733118902532,8.0050088,96500.0,96499.0,0.1281652]
[1733118903512,8.0050088,96500.0,96499.0,0.23101041]
[1733118903759,7.95834814,96500.0,96499.0,0.23101041]
[1733118904232,7.95834814,96500.0,96499.0,0.33101041]
[1733118904871,7.95634814,96500.0,96499.0,0.33101041]
[1733118905133,7.95934814,96500.0,96499.0,0.33101041]
[1733118905342,7.95634814,96500.0,96499.0,0.33101041]
[1733118905753,7.95734814,96500.0,96499.0,0.33101041]
[1733118906412,7.95834814,96500.0,96499.0,0.33201041]
[1733118906593,7.95734814,96500.0,96499.0,0.33201041]
[1733118906825,7.95634814,96500.0,96499.0,0.33101041]
[1733118907066,7.95634814,96500.0,96499.0,0.23101041]
[1733118907286,7.95734814,96500.0,96499.0,0.23301041]
[1733118907868,7.95734814,96500.0,96499.0,0.23101041]
[1733118908302,7.95734814,96500.0,96499.0,0.23301041]
[1733118909410,7.95734814,96500.0,96499.0,0.10571041]
[1733118909546,7.95634814,96500.0,96499.0,0.0008652]
[1733118909909,7.95634814,96500.0,96499.0,0.0018652]
[1733118910376,7.95634814,96500.0,96499.0,0.0008652]
[1733118910778,7.95634814,96500.0,96499.0,0.0018652]
[1733118917856,7.95634814,96500.0,96499.0,0.0008652]
[1733118918917,7.95734814,96500.0,96499.0,0.0008652]
[1733118919148,7.95634814,96500.0,96499.0,0.0008652]
[1733118919355,7.95634814,96500.0,96499.0,0.0018652]
[1733118919561,7.95934814,96500.0,96499.0,0.0018652]
[1733118919787,7.95934814,96500.0,96499.0,0.0008652]
[1733118920254,7.95934814,96500.0,96499.0,0.0018652]
[1733118921304,8.16660114,96500.0,96499.0,0.0018652]
[1733118923059,8.16660114,96500.0,96499.0,0.0008652]
[1733118923269,8.16360114,96500.0,96499.0,0.0008652]
[1733118923915,8.16660114,96500.0,96499.0,0.0008652]
[1733118924996,8.16360114,96500.0,96499.0,0.0008652]
[1733118925438,8.16660114,96500.0,96499.0,0.0008652]
[1733118925649,8.16360114,96500.0,96499.0,0.0008652]
[1733118926072,8.16660114,96500.0,96499.0,0.0008652]
[1733118927692,8.18073243,96500.0,96499.0,0.0008652]
[1733118928601,8.16660114,96500.0,96499.0,0.0008652]
[1733118931180,8.31660114,96500.0,96499.0,0.0008652]
[1733118931406,8.36580114,96500.0,96499.0,0.0008652]
[1733118934073,8.46864635,96500.0,96499.0,0.0008652]
[1733118937327,8.54454635,96500.0,96499.0,2e-07]
[1733118937769,8.74454635,96500.0,96499.0,2e-07]
[1733118938217,8.74154635,96500.0,96499.0,2e-07]
[1733118938632,8.75054635,96500.0,96499.0,2e-07]
[1733118938847,8.74154635,96500.0,96499.0,2e-07]
[1733118939304,8.74954635,96500.0,96499.0,2e-07]
[1733118939540,8.86137781,96500.0,96499.0,2e-07]
[1733118939754,8.85337781,96500.0,96499.0,2e-07]
[1733118939961,8.75054635,96500.0,96499.0,2e-07]
[1733118940164,0.207301,96478.0,96470.0,0.102186]
[1733118940379,0.207282,96487.0,96474.0,0.1222]
[1733118940579,0.207282,96487.0,96476.0,0.1222]
[1733118940804,8.26719335,96500.0,96476.0,0.12403446]
[1733118940805,0.207294,96482.0,96476.0,0.12403446]
[1733118941001,0.207294,96482.0,96476.0,0.1222]
[1733118941214,0.207294,96481.0,96476.0,0.1222]
[1733118941417,8.06719335,96500.0,96476.0,0.12279531]
[1733118941626,0.207292,96483.0,96476.0,0.12279531]
[1733118942699,0.414584,96483.0,96476.0,0.12279531]
[1733118943130,0.207296,96480.0,96476.0,0.12279531]
[1733118943690,0.219292,96483.0,96476.0,0.12279531]
[1733118944057,0.216292,96483.0,96476.0,0.12279531]
[1733118944254,0.002,96480.0,96476.0,0.12279531]
[1733118945435,0.002,96480.0,96478.0,0.1211]
[1733118945635,0.002,96480.0,96479.0,0.33023236]
[1733118945636,0.008,96480.0,96479.0,0.33023236]
[1733118945898,0.02118552,96491.0,96481.0,0.1229]
[1733118946094,0.207262,96497.0,96479.0,0.207298]
[1733118946095,0.001,96483.0,96482.0,0.12473432]
[1733118946506,0.207264,96495.0,96483.0,0.0778]
[1733118946730,0.15,96496.0,96484.0,0.00183431]
[1733118946947,0.207264,96495.0,96485.0,0.0824]
[1733118947190,0.15,96496.0,96485.0,0.0824]
[1733118947191,0.15,96496.0,96486.0,0.00183431]
[1733118947787,0.001,96495.0,96486.0,0.00183431]
[1733118948441,0.207266,96494.0,96486.0,0.00183431]
[1733118948863,0.15,96499.0,96486.0,0.00183431]
[1733118948864,0.207263,96496.0,96486.0,0.00183431]
[1733118949296,0.209263,96496.0,96486.0,0.00183431]
[1733118949705,0.005,96494.0,96486.0,0.00183431]
[1733118950070,0.002,96496.0,96487.0,0.0489]
[1733118950269,0.008,96496.0,96487.0,0.05073424]
[1733118950472,0.006,96496.0,96487.0,0.05073424]
[1733118950684,0.207256,96499.0,96487.0,0.05073424]
[1733118950888,0.006,96494.0,96487.0,0.05073424]
[1733118952057,0.213267,96494.0,96487.0,0.05073424]
[1733118952273,0.208267,96494.0,96487.0,0.0489]
[1733118952711,0.207267,96494.0,96487.0,0.0489]
[1733118952928,0.002,96496.0,96487.0,0.0489]
[1733118953374,0.005,96494.0,96487.0,0.0489]
[1733118953837,0.006,96494.0,96487.0,0.0489]
[1733118954052,0.001,96494.0,96487.0,0.0489]
[1733118954260,0.207256,96499.0,96487.0,0.0489]
[1733118954701,0.001,96494.0,96487.0,0.0489]
[1733118955534,0.001,96494.0,96488.0,0.207279]
[1733118955945,0.006,96496.0,96488.0,0.207279]
[1733118956159,7.95634814,96500.0,96488.0,0.207279]
[1733118956361,0.002,96499.0,96488.0,0.207279]
[1733118956683,0.005,96494.0,96490.0,0.207275]
[1733118956900,7.95634814,96500.0,96489.0,0.0758]
[1733118957122,0.001,96496.0,96489.0,0.07763421]
[1733118957590,7.95634814,96500.0,96495.0,0.207262]
[1733118957839,0.002,96499.0,96496.0,0.1293]
[1733118958295,0.002,96499.0,96497.0,0.20726]
[1733118958510,0.002,96499.0,96498.0,0.1293]
[1733118959156,7.95634814,96500.0,96499.0,0.207256]
[1733118959813,7.95634814,96500.0,96499.0,0.31010121]
[1733118961166,7.95634814,96500.0,96499.0,0.62518232]
[1733118961387,7.95634814,96500.0,96499.0,0.31110121]
[1733118963160,7.95634814,96500.0,96499.0,0.10384521]
[1733118964258,7.95634814,96500.0,96499.0,0.001]
[1733118965096,7.95634814,96500.0,96493.0,0.207268]
[1733118965303,7.95634814,96500.0,96495.0,0.207264]
[1733118965531,7.95634814,96500.0,96499.0,0.001]
[1733118966674,7.95834814,96500.0,96499.0,0.001]
[1733118967089,7.95634814,96500.0,96498.0,0.207256]
[1733118967301,7.95734814,96500.0,96499.0,0.001]
[1733118967773,7.95734814,96500.0,96499.0,0.0483]
[1733118967984,7.95734814,96500.0,96499.0,0.0473]
[1733118969716,7.95634814,96500.0,96499.0,0.0473]
[1733118970162,7.95634814,96500.0,96499.0,0.22654521]
[1733118970394,7.95621084,96500.0,96499.0,0.22654521]
[1733118970608,7.95621084,96500.0,96499.0,0.22754521]
[1733118971226,7.96205407,96500.0,96499.0,0.22754521]
[1733118971465,7.96205407,96500.0,96499.0,0.22654521]
[1733118971679,7.96205407,96500.0,96499.0,0.22754521]
[1733118972099,7.96205407,96500.0,96499.0,0.22654521]
[1733118972958,7.96205407,96500.0,96499.0,0.32654521]
[1733118973167,7.96305407,96500.0,96499.0,0.35054521]
[1733118973411,7.96405407,96500.0,96499.0,0.35054521]
[1733118981230,7.91739752,96500.0,96499.0,0.60054521]
[1733118981715,7.91739752,96500.0,96499.0,0.63283765]
[1733118982111,7.85160606,96500.0,96499.0,0.63183765]
[1733118982241,7.69111259,96500.0,96499.0,0.59954521]
[1733118982450,7.69211259,96500.0,96499.0,1.30054521]
[1733118982940,7.69111259,96500.0,96499.0,1.30054521]
[1733118983142,7.69211259,96500.0,96499.0,1.30654521]
[1733118983853,7.69111259,96500.0,96499.0,1.30554521]
[1733118984021,7.69011259,96500.0,96499.0,1.29954521]
[1733118984227,7.69111259,96500.0,96499.0,1.30454521]
[1733118984426,7.69211259,96500.0,96499.0,1.31054521]
[1733118985271,7.66878933,96500.0,96499.0,1.31054521]
[1733118985924,7.65953102,96500.0,96499.0,0.61054521]
[1733118987557,7.64063836,96500.0,96499.0,0.61054521]
[1733118989033,7.64063836,96500.0,96499.0,1.62371983]
[1733118989242,7.64063836,96500.0,96499.0,1.62368812]
[1733118989449,7.64063836,96500.0,96499.0,1.31054521]
[1733118992512,7.60824471,96500.0,96499.0,1.31054521]
[1733118994118,7.60824471,96500.0,96499.0,1.81288647]
[1733118994530,7.60824471,96500.0,96499.0,1.31054521]
[1733118996233,7.60824471,96500.0,96499.0,1.81288647]
[1733118996677,7.60824471,96500.0,96499.0,1.31054521]
[1733118997328,7.60824471,96500.0,96499.0,1.31141031]
[1733119002548,7.5758503,96500.0,96499.0,1.31141031]
[1733119006102,7.5758503,96500.0,96499.0,1.34370329]
[1733119007914,7.5758503,96500.0,96499.0,1.24370329]
[1733119008129,7.5758503,96500.0,96499.0,1.18771031]
[1733119010978,7.5758503,96500.0,96499.0,0.48771031]
[1733119011645,7.5758503,96500.0,96499.0,1.18771031]
[1733119013285,7.5758503,96500.0,96499.0,1.69061999]
[1733119014180,7.5758503,96500.0,96499.0,1.18771031]
[1733119016214,7.5758503,96500.0,96499.0,1.22006518]
[1733119020351,7.5758503,96500.0,96499.0,0.52006518]
[1733119022058,7.5758503,96500.0,96499.0,1.22006518]
[1733119026909,7.55719032,96500.0,96499.0,1.22006518]
[1733119028218,7.55719032,96500.0,96499.0,0.52006518]
[1733119031070,7.55719032,96500.0,96499.0,1.22006518]
[1733119033357,7.55719032,96500.0,96499.0,1.34846518]
[1733119033568,7.5566447,96500.0,96499.0,1.34846518]
[1733119033782,7.5566447,96500.0,96499.0,1.89732699]
[1733119034218,7.5566447,96500.0,96499.0,1.34846518]
[1733119037018,7.5566447,96500.0,96499.0,1.84931003]
[1733119037642,7.5566447,96500.0,96499.0,1.29886518]
[1733119037846,7.5566447,96500.0,96499.0,1.22006518]
[1733119040491,7.5566447,96500.0,96499.0,1.30156518]
[1733119040712,7.5566447,96500.0,96499.0,1.34836518]
[1733119051615,7.52425142,96500.0,96499.0,1.34836518]
[1733119053088,7.52425142,96500.0,96499.0,1.89876769]
[1733119056149,7.52425142,96500.0,96499.0,1.34836518]
[1733119056573,7.52425142,96500.0,96499.0,1.89876167]
[1733119060205,7.52425142,96500.0,96499.0,1.34836518]
[1733119061264,7.5306154,96500.0,96499.0,1.34836518]
[1733119065579,7.49822299,96500.0,96499.0,1.34836518]
[1733119073572,7.49822299,96500.0,96499.0,1.30156518]
[1733119074015,7.49822299,96500.0,96499.0,0.60156518]
[1733119075646,7.46583053,96500.0,96499.0,0.60156518]
[1733119076544,7.46583053,96500.0,96499.0,0.52006518]
[1733119077152,7.44678053,96500.0,96499.0,1.22006518]
[1733119079987,7.49418053,96500.0,96499.0,1.22006518]
[1733119080845,7.49418053,96500.0,96499.0,1.19706518]
[1733119081525,7.49418053,96500.0,96499.0,1.16471031]
[1733119082400,7.49418053,96500.0,96499.0,1.18771031]
[1733119084161,7.49320694,96500.0,96499.0,1.18771031]
[1733119084783,7.49320694,96500.0,96499.0,0.48771031]
[1733119086716,7.49120694,96500.0,96499.0,0.47671031]
[1733119087159,7.49320694,96500.0,96499.0,0.48771031]
[1733119087381,7.49220694,96500.0,96499.0,0.48171031]
[1733119087834,7.49220694,96500.0,96499.0,0.38171031]
[1733119088052,7.57060694,96500.0,96499.0,0.38171031]
[1733119088267,7.57060694,96500.0,96499.0,0.37131657]
[1733119088696,7.57160694,96500.0,96499.0,0.37631657]
[1733119089169,7.57060694,96500.0,96499.0,0.36631657]
[1733119089380,7.57260694,96500.0,96499.0,0.37331657]
[1733119090030,7.56960694,96500.0,96499.0,0.36631657]
[1733119090242,7.56960694,96500.0,96499.0,0.36931657]
[1733119090424,7.57160694,96500.0,96499.0,0.37331657]
[1733119090866,7.57060694,96500.0,96499.0,0.37031657]
[1733119091089,7.57060694,96500.0,96499.0,0.37331657]
[1733119091300,7.57160694,96500.0,96499.0,0.37331657]
[1733119092116,7.57060694,96500.0,96499.0,0.36931657]
[1733119092518,7.57060694,96500.0,96499.0,0.37131657]
[1733119092682,7.57060694,96500.0,96499.0,0.87037803]
[1733119092683,7.56960694,96500.0,96499.0,0.87037803]
[1733119092877,7.57060694,96500.0,96499.0,0.37031657]
[1733119093077,7.57160694,96500.0,96499.0,0.37531657]
[1733119093278,7.57060694,96500.0,96499.0,0.37131657]
[1733119094141,7.56960694,96500.0,96499.0,0.36631657]
[1733119094348,7.57060694,96500.0,96499.0,0.37031657]
[1733119095587,7.56960694,96500.0,96499.0,0.36631657]
[1733119095923,7.57160694,96500.0,96499.0,0.37531657]
[1733119097377,7.57160694,96500.0,96499.0,0.87918653]
[1733119097771,7.57160694,96500.0,96499.0,0.37531657]
[1733119098354,7.57160694,96500.0,96499.0,0.87917062]
[1733119099980,7.57160694,96500.0,96499.0,0.25231657]
[1733119101185,7.57160694,96500.0,96499.0,0.27531657]
[1733119101856,7.57160694,96500.0,96499.0,0.12531657]
[1733119104019,7.57160694,96500.0,96499.0,0.10231657]
[1733119105057,7.77785994,96500.0,96499.0,0.09831657]
[1733119105252,7.77685994,96500.0,96499.0,0.09331657]
[1733119105455,7.77685994,96500.0,96499.0,0.10131657]
[1733119105903,7.77685994,96500.0,96499.0,0.09731657]
[1733119106106,7.56960694,96500.0,96499.0,0.09731657]
[1733119106764,7.56960694,96500.0,96499.0,0.09331657]
[1733119106967,7.56960694,96500.0,96499.0,0.09631657]
[1733119107108,7.56960694,96500.0,96499.0,0.09831657]
[1733119112381,7.77685994,96500.0,96499.0,0.09831657]
[1733119112606,7.77685994,96500.0,96499.0,0.0058651]